bitfinex/quotes_ETHUSD_20220311
["timestamp","ask_amount","ask_price","bid_price","bid_amount"]
[1646961503681,0.00376861,2574.3,2574.2,0.762]
[1646961503879,0.00376861,2574.3,2574.2,0.8344188]
[1646961504285,0.00376861,2574.3,2574.2,1.73335]
[1646961504286,6.861e-05,2574.3,2574.2,1.73335]
[1646961504486,0.04035806,2574.9,2574.3,0.1942]
[1646961504686,0.04035806,2574.9,2574.4,1.29882716]
[1646961504888,0.04035806,2574.9,2574.5,0.1942]
[1646961505084,0.04035806,2574.9,2574.6,0.462]
[1646961505285,0.04035806,2574.9,2574.7,0.97104]
[1646961505490,0.04035806,2574.9,2574.8,0.462]
[1646961505885,0.04035806,2574.9,2574.8,1.55948153]
[1646961506289,0.04035806,2574.9,2574.8,2.55948153]
[1646961506689,7.33,2575.6,2575.1,1.9420017]
[1646961506888,2.56252922,2576.1,2575.2,0.462]
[1646961507093,2.56252922,2576.1,2575.2,1.2658]
[1646961507336,0.04700605,2576.3,2575.2,1.2658]
[1646961507535,1.60112658,2576.2,2575.2,1.2658]
[1646961507739,0.04700605,2576.3,2575.2,1.2658]
[1646961507935,0.04700605,2576.3,2575.7,0.91906944]
[1646961508339,0.00356445,2575.8,2575.7,0.91906944]
[1646961509143,0.04700605,2576.3,2575.7,0.91906944]
[1646961509342,1.01795605,2576.3,2575.7,0.91906944]
[1646961509542,0.00356444,2575.9,2575.7,0.91906944]
[1646961510342,1.01795605,2576.3,2575.2,0.462]
[1646961510551,0.97105,2576.0,2575.2,0.462]
[1646961510744,0.05278184,2575.9,2575.2,0.462]
[1646961510989,0.05278184,2575.9,2574.8,0.462]
[1646961511184,7.33359796,2575.9,2574.8,0.462]
[1646961511385,0.05206031,2575.8,2575.3,0.90562277]
[1646961511782,0.00359812,2575.5,2575.3,0.90562277]
[1646961513004,1.02318031,2575.8,2575.3,0.90562277]
[1646961513183,0.0035981,2575.5,2575.3,0.90562277]
[1646961513785,0.0035981,2575.5,2575.4,0.462]
[1646961513993,7.33,2575.9,2575.4,0.462]
[1646961514182,7.33,2575.9,2575.8,1.08102763]
[1646961516233,7.33,2575.9,2575.8,1.61679639]
[1646961519783,7.33,2575.9,2575.8,0.07376876]
[1646961519978,7.33,2575.9,2575.3,0.194]
[1646961520279,7.33,2575.9,2575.1,0.26813624]
[1646961520477,1.94233,2575.8,2574.9,0.72886341]
[1646961520676,8.3081194,2575.9,2575.1,0.97104]
[1646961520876,7.3370594,2575.9,2575.1,0.97104]
[1646961521082,7.3370594,2575.9,2575.2,0.85526226]
[1646961521280,7.3370594,2575.9,2574.9,0.53486341]
[1646961521484,7.3370594,2575.9,2574.6,0.07968698]
[1646961521485,0.97127,2575.3,2574.6,0.07968698]
[1646961521684,1.99182575,2575.5,2574.7,1.16519]
[1646961521885,1.99182575,2575.5,2574.6,0.07968698]
[1646961522085,1.99182575,2575.5,2574.4,0.2806964]
[1646961522325,1.99182575,2575.5,2574.5,0.9712064]
[1646961522526,1.99182575,2575.5,2574.6,0.27853641]
[1646961522725,0.00367142,2575.1,2574.9,1.12191431]
[1646961523726,1.99182575,2575.5,2574.9,1.12191431]
[1646961523925,0.0036714,2575.1,2574.9,1.12191431]
[1646961524326,0.0036714,2575.1,2574.6,0.08453641]
[1646961524727,0.0036714,2575.1,2574.4,0.194]
[1646961524728,0.05534925,2575.1,2574.3,0.194]
[1646961524930,0.05167785,2575.1,2574.1,0.0863957]
[1646961525126,0.97157,2574.4,2573.8,1.1942]
[1646961525327,0.97157,2574.4,2573.9,0.07444235]
[1646961525526,0.97157,2574.4,2574.2,1.09798658]
[1646961525728,0.00368068,2575.0,2574.3,0.09007178]
[1646961526191,0.05167785,2575.1,2574.3,0.09007178]
[1646961526388,0.97716828,2575.0,2574.3,0.09007178]
[1646961526589,0.00358239,2574.8,2574.3,0.04007178]
[1646961527489,0.97716828,2575.0,2574.3,0.04007178]
[1646961527691,0.00358242,2574.7,2574.3,0.04007178]
[1646961527890,0.00358242,2574.7,2574.6,0.84316961]
[1646961528093,0.00358242,2574.7,2574.3,0.93544687]
[1646961528094,0.86500148,2574.4,2574.3,0.93544687]
[1646961528392,0.86500148,2574.4,2574.3,1.90671687]
[1646961529194,0.86500148,2574.4,2574.3,0.93544687]
[1646961530426,0.86500148,2574.4,2574.3,1.39744687]
[1646961530626,0.87229484,2574.4,2574.3,1.39744687]
[1646961532238,7.33,2575.3,2574.4,3.68684125]
[1646961532435,7.33,2575.3,2575.0,0.08749104]
[1646961532633,7.33,2575.3,2575.1,0.462]
[1646961532833,7.33,2575.3,2575.2,0.0725924]
[1646961533031,7.33,2575.3,2575.2,0.5345924]
[1646961533880,7.33,2575.3,2575.2,1.5345924]
[1646961534080,7.33,2575.3,2575.2,3.56696329]
[1646961534282,0.194,2576.3,2575.3,3.5]
[1646961534482,0.194,2576.7,2575.4,0.656]
[1646961534681,7.33,2576.6,2575.5,0.08268769]
[1646961534885,0.0523696,2576.5,2575.7,0.07184038]
[1646961535083,0.0523696,2576.5,2575.8,0.462]
[1646961535280,0.0523696,2576.5,2575.8,1.4327243]
[1646961535481,0.0523696,2576.5,2575.8,2.4035043]
[1646961535679,0.0523696,2576.5,2575.8,2.56846501]
[1646961535881,0.0523696,2576.5,2575.8,3.56846501]
[1646961536082,0.00299671,2576.3,2575.8,3.56846501]
[1646961537086,0.9708,2576.4,2575.8,2.43278]
[1646961537324,0.00412438,2576.2,2575.8,0.462]
[1646961538224,1.94167,2576.5,2575.7,1.00465038]
[1646961538428,0.05733575,2576.3,2575.8,0.462]
[1646961538627,0.0041244,2576.1,2575.8,0.462]
[1646961539426,1.05859629,2576.3,2575.8,0.462]
[1646961539626,0.08775629,2576.3,2575.8,0.462]
[1646961539827,0.00412443,2576.1,2575.8,0.462]
[1646961540628,0.97084,2576.0,2575.8,0.462]
[1646961540828,0.08775629,2576.3,2575.8,0.462]
[1646961541089,0.00412443,2576.1,2575.8,0.462]
[1646961541893,0.97083,2576.1,2575.8,0.462]
[1646961542090,0.97483008,2576.1,2575.8,0.462]
[1646961542491,1.60081488,2576.0,2575.8,0.462]
[1646961542694,2.40685909,2576.0,2575.8,0.462]
[1646961542895,0.05690371,2575.9,2575.4,0.194]
[1646961543097,0.971,2575.7,2575.4,0.194]
[1646961543296,0.06310583,2575.6,2575.4,0.194]
[1646961543495,0.971,2575.7,2575.4,0.194]
[1646961543693,0.05180177,2575.6,2575.4,0.194]
[1646961544292,0.97106,2575.5,2575.1,0.462]
[1646961544495,0.05424822,2575.3,2575.1,0.462]
[1646961544725,0.05424822,2575.3,2574.7,1.462]
[1646961545124,0.05424822,2575.3,2574.8,0.88440286]
[1646961545527,0.05424822,2575.3,2574.8,1.85547856]
[1646961545728,0.05424822,2575.3,2575.0,0.97108]
[1646961545928,0.00389838,2575.2,2575.0,0.97108]
[1646961546331,0.00389838,2575.2,2575.0,1.73308]
[1646961546631,0.00389838,2575.2,2575.0,2.7040717]
[1646961546829,0.05424822,2575.3,2575.2,1.1373467]
[1646961547031,0.05424822,2575.3,2575.2,2.7235467]
[1646961547230,0.05424822,2575.3,2575.2,4.6943667]
[1646961547432,7.33,2575.5,2575.2,4.6943667]
[1646961547631,7.33,2575.5,2575.3,0.9708455]
[1646961547838,7.33,2575.5,2575.4,0.462]
[1646961548038,0.08159516,2576.1,2575.4,0.462]
[1646961548039,0.02994292,2576.1,2575.5,0.07631871]
[1646961548236,0.02994292,2576.1,2575.7,1.08423819]
[1646961548490,0.02994292,2576.1,2575.8,0.462]
[1646961548677,0.02994292,2576.1,2575.8,1.3983]
[1646961549280,0.02994292,2576.1,2575.8,2.3690103]
[1646961549480,0.05023557,2576.6,2576.3,0.97055]
[1646961549683,0.04760635,2576.8,2576.4,2.5]
[1646961549886,4.01874344,2577.5,2576.4,2.5]
[1646961549887,0.1202,2577.5,2576.5,7.294]
[1646961550088,1.10553027,2578.0,2576.6,37.61990393]
[1646961550301,1.10553027,2578.0,2577.3,0.07792108]
[1646961550302,0.405003,2578.0,2577.3,0.07792108]
[1646961550486,0.405003,2578.0,2577.4,0.462]
[1646961550687,0.016603,2578.0,2577.9,0.96998]
[1646961550884,0.016603,2578.0,2577.9,2.20898]
[1646961551488,0.016603,2578.0,2577.9,1.239]
[1646961554732,0.06148363,2578.0,2577.9,1.239]
[1646961556181,0.06313364,2578.0,2577.9,1.239]
[1646961558389,0.03913364,2578.0,2577.9,1.239]
[1646961558588,3.308e-05,2578.1,2578.0,1.18095328]
[1646961558786,3.308e-05,2578.1,2578.0,4.36702328]
[1646961558987,3.308e-05,2578.1,2578.0,41.45128942]
[1646961559187,0.00627864,2578.6,2578.2,2.90849]
[1646961559388,0.00627864,2578.6,2578.4,1.08241519]
[1646961559587,0.00627864,2578.6,2578.5,0.6558]
[1646961559840,0.00627864,2578.6,2578.5,1.7705]
[1646961560239,0.00627864,2578.6,2578.5,38.85476614]
[1646961560441,0.00627864,2578.6,2578.5,39.85476614]
[1646961560643,0.00627864,2578.6,2578.5,40.85476614]
[1646961561545,7.864e-05,2578.6,2578.5,40.85476614]
[1646961562149,7.864e-05,2578.6,2578.5,3.7705]
[1646961562350,7.864e-05,2578.6,2578.5,1.462]
[1646961562547,7.864e-05,2578.6,2578.5,0.462]
[1646961563681,7.864e-05,2578.6,2578.5,0.762]
[1646961564980,7.864e-05,2578.6,2578.5,1.73164]
[1646961565181,7.864e-05,2578.6,2578.5,0.762]
[1646961566787,0.01247864,2578.6,2578.5,0.762]
[1646961567232,0.01247864,2578.6,2578.5,2.6782]
[1646961567629,0.01247864,2578.6,2578.5,3.6782]
[1646961567832,0.01247864,2578.6,2578.5,4.79598092]
[1646961568031,0.01247864,2578.6,2578.5,5.76573092]
[1646961569232,0.01195753,2579.1,2578.7,0.02480996]
[1646961569436,0.01195753,2579.1,2579.0,1.93881]
[1646961569732,0.01195753,2579.1,2579.0,0.69513906]
[1646961570135,0.03344316,2579.2,2579.0,0.462]
[1646961570331,1.00308316,2579.2,2579.0,0.462]
[1646961570985,3.53344316,2579.2,2578.7,0.02480996]
[1646961571193,0.04339838,2579.1,2578.7,0.02480996]
[1646961571389,1.00310316,2579.2,2578.7,0.02480996]
[1646961571787,1.00724583,2579.2,2578.7,0.02480996]
[1646961572386,1.00724583,2579.2,2578.8,0.96964]
[1646961572588,0.03344316,2579.2,2578.7,0.02480996]
[1646961572789,0.03344316,2579.2,2578.8,0.462]
[1646961572790,0.00414274,2579.1,2578.8,0.462]
[1646961573792,0.03344316,2579.2,2578.8,0.462]
[1646961573989,0.00414274,2579.1,2578.8,0.462]
[1646961574489,0.00414274,2579.1,2578.8,1.43162]
[1646961574928,0.03344316,2579.2,2578.8,1.43162]
[1646961575227,0.00414274,2579.1,2578.8,1.43162]
[1646961575632,0.00414274,2579.1,2578.7,0.02480996]
[1646961575633,0.05069521,2579.1,2578.4,2.93934]
[1646961575829,0.05069521,2579.1,2578.0,0.57864922]
[1646961576230,0.0480178,2579.1,2578.0,0.57864922]
[1646961576434,0.00381103,2578.9,2578.0,0.57864922]
[1646961576631,0.00381103,2578.9,2578.0,1.65543274]
[1646961576832,0.96984,2578.8,2578.0,1.65543274]
[1646961577030,1.93067195,2578.8,2578.0,1.65543274]
[1646961577232,1.93067195,2578.8,2578.0,2.03682573]
[1646961577433,1.93067195,2578.8,2578.2,1.9395]
[1646961577631,0.97365073,2578.8,2578.2,2.2395]
[1646961577833,0.97365073,2578.8,2578.4,0.96977]
[1646961578233,0.97365073,2578.8,2578.4,0.3]
[1646961578489,0.96988,2578.7,2578.4,0.3]
[1646961578676,0.96988,2578.7,2578.2,3.2395]
[1646961579081,0.96988,2578.7,2578.1,1.3]
[1646961579277,0.96988,2578.7,2578.2,0.96987]
[1646961579477,0.05383906,2578.5,2578.0,2.05630922]
[1646961579683,0.96994,2578.5,2578.0,1.93966]
[1646961579877,0.04616845,2578.3,2578.0,1.93966]
[1646961580078,0.04616845,2578.3,2578.1,1.0]
[1646961580678,0.96994,2578.5,2578.1,1.0]
[1646961582238,0.96994,2578.5,2578.1,1.3]
[1646961582634,0.94359893,2578.4,2578.1,1.3]
[1646961582838,0.04242064,2578.3,2578.1,1.0]
[1646961583040,4.47004,2578.3,2578.1,1.0]
[1646961583237,3.5,2578.2,2577.4,6.0511]
[1646961583436,3.5,2578.2,2577.4,1.0]
[1646961583437,0.0484721,2578.1,2577.4,1.0]
[1646961584037,0.99607692,2578.0,2577.4,1.0]
[1646961584436,0.0484721,2578.1,2577.4,1.0]
[1646961584641,0.9702,2577.8,2577.4,1.0]
[1646961584841,0.0484721,2578.1,2577.5,0.97011]
[1646961585042,0.01575057,2578.4,2577.6,0.462]
[1646961585241,0.01575057,2578.4,2577.6,0.762]
[1646961585642,0.01575057,2578.4,2578.0,1.10654512]
[1646961585990,0.00146414,2578.7,2578.1,0.462]
[1646961586384,0.01571595,2578.5,2578.1,0.462]
[1646961587086,0.04956165,2578.8,2578.1,0.462]
[1646961587485,0.06758788,2578.8,2578.1,0.462]
[1646961588183,0.04761526,2578.6,2578.1,0.462]
[1646961589388,0.97003,2578.5,2578.1,0.462]
[1646961589586,2.01547031,2578.5,2578.1,0.462]
[1646961589828,0.04231481,2578.4,2578.1,0.462]
[1646961591834,0.00146523,2578.5,2578.1,1.43191]
[1646961592534,0.00146523,2578.5,2578.1,0.462]
[1646961592737,0.00146523,2578.5,2578.1,1.43191]
[1646961592939,0.00146523,2578.5,2578.1,0.462]
[1646961593582,0.00146523,2578.5,2578.1,1.42543086]
[1646961593984,0.00146523,2578.5,2578.2,0.1938]
[1646961594182,0.00146523,2578.5,2578.3,1.43184]
[1646961594384,0.00146523,2578.5,2578.4,0.08628092]
[1646961594586,0.00146523,2578.5,2578.4,0.54828092]
[1646961594983,0.00146523,2578.5,2578.4,0.74208092]
[1646961597732,0.00146523,2578.5,2578.4,0.54828092]
[1646961598336,0.00146523,2578.5,2578.0,3.60332689]
[1646961598539,0.00146523,2578.5,2577.9,0.462]
[1646961598540,1.32761477,2578.3,2577.9,0.462]
[1646961599538,1.32761477,2578.3,2577.9,0.762]
[1646961599742,1.32761477,2578.3,2577.9,0.462]
[1646961600339,1.11568376,2578.1,2577.9,0.462]
[1646961600543,1.11568376,2578.1,2577.5,2.40209]
[1646961600544,0.04139296,2578.0,2577.5,2.40209]
[1646961600738,0.04139296,2578.0,2577.3,2.02948824]
[1646961600994,1.32907768,2578.3,2577.4,1.07157444]
[1646961601187,1.59946285,2578.2,2577.5,0.0890122]
[1646961601789,1.59946285,2578.2,2577.5,2.9990294]
[1646961601990,1.32907768,2578.3,2577.6,0.462]
[1646961602188,1.59938188,2578.2,2577.6,0.462]
[1646961603387,1.59938188,2578.2,2577.6,0.762]
[1646961603990,0.97021,2578.0,2577.6,0.762]
[1646961604826,0.05349158,2578.1,2577.6,0.762]
[1646961605228,0.97016,2578.1,2577.6,0.462]
[1646961605427,0.04368231,2578.0,2577.6,0.462]
[1646961606231,0.04368231,2578.0,2577.6,0.762]
[1646961607040,0.00146557,2578.1,2577.7,0.97007]
[1646961608038,0.00065633,2578.1,2577.8,0.53650661]
[1646961608242,0.00065633,2578.1,2577.9,1.05652531]
[1646961608502,0.00065633,2578.1,2578.0,0.54525861]
[1646961609492,0.00065633,2578.1,2578.0,0.84525861]
[1646961609893,0.00065633,2578.1,2578.0,0.762]
[1646961610493,0.00065633,2578.1,2578.0,0.9558]
[1646961610896,1.32761477,2578.3,2578.0,0.9558]
[1646961611798,1.32761477,2578.3,2578.0,1.92573]
[1646961612234,1.32761477,2578.3,2578.0,0.462]
[1646961612633,1.32761477,2578.3,2577.6,0.462]
[1646961612838,1.32761477,2578.3,2577.6,1.7319424]
[1646961613236,1.32761477,2578.3,2577.7,0.94730269]
[1646961613535,1.32761477,2578.3,2577.7,1.40930269]
[1646961613937,1.32761477,2578.3,2578.2,0.96989]
[1646961614739,1.32761477,2578.3,2578.0,2.40167]
[1646961615982,1.32761477,2578.3,2577.8,1.0]
[1646961616185,1.32761477,2578.3,2577.6,2.3]
[1646961616387,1.32761477,2578.3,2577.4,0.762]
[1646961616884,1.32761477,2578.3,2577.5,0.83078962]
[1646961617086,1.32761477,2578.3,2577.9,0.96998]
[1646961617286,1.32761477,2578.3,2577.7,1.93992]
[1646961617488,0.05033546,2578.2,2577.4,1.0]
[1646961617789,0.05033546,2578.2,2577.2,0.13819997]
[1646961618090,0.05033546,2578.2,2577.6,1.91030257]
[1646961618393,0.05033546,2578.2,2577.6,0.94020257]
[1646961618988,1.32761477,2578.3,2577.6,0.94020257]
[1646961619285,1.32761477,2578.3,2578.1,0.96992]
[1646961620232,1.32761477,2578.3,2577.9,1.53805795]
[1646961620433,1.32761477,2578.3,2577.9,0.53805795]
[1646961620932,0.00132338,2578.1,2577.9,0.53805795]
[1646961622137,0.00132338,2578.1,2577.9,1.50804795]
[1646961623883,0.00132338,2578.1,2577.9,0.53805795]
[1646961624281,0.00132338,2578.1,2577.9,0.07605795]
[1646961625382,0.00132338,2578.1,2577.8,1.93979]
[1646961625586,0.00132338,2578.1,2577.5,0.07385329]
[1646961625792,0.00132338,2578.1,2577.3,0.07355654]
[1646961625988,0.05168986,2578.1,2577.3,0.07355654]
[1646961626387,0.97025,2577.9,2577.3,1.0509805]
[1646961626590,0.05168986,2578.1,2577.4,0.07084251]
[1646961626591,0.00132338,2578.1,2577.4,0.07084251]
[1646961628432,0.00132338,2578.1,2577.6,0.97009]
[1646961628834,0.00132338,2578.1,2577.6,1.0031]
[1646961629033,0.00132338,2578.1,2577.8,0.08554104]
[1646961629233,0.00132338,2578.1,2577.9,0.462]
[1646961629234,0.00023929,2578.1,2577.9,0.462]
[1646961630834,1.32761477,2578.3,2577.9,0.462]
[1646961631483,1.32761477,2578.3,2578.0,0.91744325]
[1646961632484,1.32761477,2578.3,2577.9,0.462]
[1646961635132,1.32761477,2578.3,2577.9,1.432]
[1646961635332,1.32761477,2578.3,2577.9,0.462]
[1646961636439,1.27761477,2578.3,2577.9,0.462]
[1646961639581,1.27761477,2578.3,2577.9,1.43204]
[1646961639781,1.27761477,2578.3,2577.9,0.462]
[1646961642232,1.27761477,2578.3,2577.9,1.43203]
[1646961643033,1.27761477,2578.3,2577.9,0.462]
[1646961643234,1.27761477,2578.3,2578.0,0.07357328]
[1646961643434,1.27761477,2578.3,2578.0,0.53557328]
[1646961643633,1.27761477,2578.3,2578.1,0.0843293]
[1646961644035,1.27761477,2578.3,2578.1,0.5463293]
[1646961647492,1.27761477,2578.3,2578.2,0.90095368]
[1646961647696,0.01446053,2578.7,2578.3,3.6]
[1646961647999,0.01446053,2578.7,2578.4,1.50239784]
[1646961648194,0.01446053,2578.7,2578.5,0.95621425]
[1646961648393,6.053e-05,2578.7,2578.6,4.03203201]
[1646961648596,0.03344316,2579.2,2578.6,6.75044315]
[1646961648798,0.03344316,2579.2,2579.0,1.17146062]
[1646961648996,0.03344316,2579.2,2579.0,3.57816062]
[1646961648997,0.01446001,2579.1,2579.0,3.57816062]
[1646961649195,0.01446001,2579.1,2579.0,3.97057671]
[1646961649407,0.01446001,2579.1,2579.0,5.92677593]
[1646961649600,0.00648248,2579.5,2579.1,3.6144]
[1646961649842,8.248e-05,2579.5,2579.2,5.11041531]
[1646961650041,8.248e-05,2579.5,2579.3,0.13819997]
[1646961650239,8.248e-05,2579.5,2579.4,1.61728431]
[1646961650639,8.248e-05,2579.5,2579.4,4.1558]
[1646961650841,8.248e-05,2579.5,2579.4,2.6558]
[1646961651446,8.248e-05,2579.5,2579.4,1.462]
[1646961651642,8.248e-05,2579.5,2579.4,0.462]
[1646961655590,0.01288248,2579.5,2579.2,1.0]
[1646961655790,0.01288248,2579.5,2579.0,0.6558]
[1646961655987,0.01288248,2579.5,2579.0,0.462]
[1646961656391,0.01288248,2579.5,2579.2,1.14482159]
[1646961657232,0.01702739,2579.5,2579.2,1.14482159]
[1646961658130,0.01288248,2579.5,2579.2,1.14482159]
[1646961658331,0.01288248,2579.5,2579.3,0.462]
[1646961658332,0.01702739,2579.5,2579.3,0.462]
[1646961659234,0.01288248,2579.5,2579.4,0.07563256]
[1646961659433,0.01288248,2579.5,2579.4,4.03763256]
[1646961659633,0.01702737,2579.5,2579.4,4.33763256]
[1646961659837,0.01702737,2579.5,2579.4,5.33763256]
[1646961660037,0.01702737,2579.5,2579.4,0.53763256]
[1646961660239,0.01702737,2579.5,2579.4,0.462]
[1646961660637,0.01288248,2579.5,2579.4,0.462]
[1646961663695,0.01288248,2579.5,2579.4,1.26551955]
[1646961663900,0.01288248,2579.5,2579.4,1.56551955]
[1646961664297,0.01288248,2579.5,2579.4,5.06551955]
[1646961664731,0.01288248,2579.5,2579.4,5.9772]
[1646961664938,0.00491421,2579.6,2579.5,3.6]
[1646961664939,0.00399669,2579.6,2579.5,3.6]
[1646961665133,0.02976165,2579.6,2579.5,4.062]
[1646961665433,0.02976165,2579.6,2579.5,5.2558]
[1646961665434,0.02585255,2579.6,2579.5,5.2558]
[1646961665636,0.02976165,2579.6,2579.5,5.2558]
[1646961666439,0.02677617,2579.6,2579.5,1.6558]
[1646961666840,0.02677617,2579.6,2579.5,0.6558]
[1646961667444,0.02677617,2579.6,2579.5,0.462]
[1646961668685,0.02677617,2579.6,2579.1,0.462]
[1646961668884,0.02677617,2579.6,2579.1,0.762]
[1646961670091,0.02677617,2579.6,2579.1,1.81594017]
[1646961670287,0.00393304,2579.5,2579.1,1.81594017]
[1646961670789,0.029698,2579.5,2579.1,1.81594017]
[1646961670990,0.029698,2579.5,2579.1,0.462]
[1646961671196,0.029698,2579.5,2578.9,0.00321933]
[1646961672334,0.04907098,2579.3,2578.9,0.00321933]
[1646961673939,0.04907098,2579.3,2577.7,0.3879]
[1646961673940,0.00439363,2578.8,2577.7,0.3879]
[1646961674143,0.00439363,2578.8,2577.6,1.0]
[1646961674342,0.05719389,2578.8,2577.6,1.0]
[1646961675142,1.01036456,2578.2,2577.1,0.462]
[1646961675358,0.0460133,2578.1,2576.7,2.24922037]
[1646961675546,0.0460133,2578.1,2576.7,0.07490506]
[1646961675743,0.0460133,2578.1,2576.5,3.83891531]
[1646961676192,4.3,2578.2,2576.6,1.13673657]
[1646961676592,0.05094953,2578.0,2576.6,1.43673657]
[1646961676993,0.05094953,2578.0,2576.7,0.069285]
[1646961677397,1.02051826,2577.5,2576.1,0.462]
[1646961677593,0.05378909,2577.4,2576.1,0.462]
[1646961678393,0.05378909,2577.4,2576.0,1.08308675]
[1646961678593,0.81017083,2576.9,2576.0,2.00405604]
[1646961678892,0.04497114,2576.8,2576.0,2.00405604]
[1646961679294,0.04497114,2576.8,2576.0,1.00405604]
[1646961679493,0.04497114,2576.8,2576.0,0.08308675]
[1646961679742,0.04497114,2576.8,2575.8,1.07985174]
[1646961680148,0.04497114,2576.8,2575.7,0.3]
[1646961680347,0.04497114,2576.8,2575.6,7.40041489]
[1646961680649,0.04201378,2577.3,2575.6,10.83]
[1646961680846,0.04201378,2577.3,2575.8,0.07811168]
[1646961681049,0.04201378,2577.3,2575.9,0.462]
[1646961681251,0.04201378,2577.3,2576.0,0.38826605]
[1646961681447,0.04201378,2577.3,2576.1,0.462]
[1646961681648,0.04201378,2577.3,2576.2,0.07065891]
[1646961681848,0.04201378,2577.3,2576.2,0.462]
[1646961682048,0.04201378,2577.3,2576.3,0.08503636]
[1646961682450,0.04201378,2577.3,2576.8,0.93982592]
[1646961682648,0.00095501,2577.4,2576.8,0.93982592]
[1646961685490,0.00095501,2577.4,2576.4,3.5451]
[1646961685794,0.00095501,2577.4,2576.4,4.8451]
[1646961686194,0.00095501,2577.4,2576.5,0.07545682]
[1646961686394,0.00095501,2577.4,2576.5,0.53745682]
[1646961686894,1.11799498,2577.8,2576.9,0.88621978]
[1646961687096,0.04311349,2577.7,2576.9,0.88621978]
[1646961687342,0.04311349,2577.7,2576.8,0.00391273]
[1646961688144,0.04311349,2577.7,2577.1,0.00391227]
[1646961688945,0.04811453,2577.9,2577.1,0.00391227]
[1646961689146,0.04811453,2577.9,2576.9,0.81472425]
[1646961689345,0.04811453,2577.9,2577.3,0.00391205]
[1646961690346,0.04811453,2577.9,2577.0,0.07007715]
[1646961690544,1.01292895,2577.9,2577.5,0.00391174]
[1646961690746,0.00102214,2577.7,2577.5,0.00391174]
[1646961691488,0.00102214,2577.7,2577.0,0.07007715]
[1646961691888,0.00102214,2577.7,2577.5,0.00378651]
[1646961692689,0.00102214,2577.7,2577.1,0.462]
[1646961692890,0.00102214,2577.7,2577.2,0.07077121]
[1646961693094,0.00102214,2577.7,2577.5,0.00378651]
[1646961693891,0.00102214,2577.7,2577.0,0.08086594]
[1646961694297,0.00102214,2577.7,2577.5,0.00378651]
[1646961694740,0.00102214,2577.7,2577.5,0.08944125]
[1646961695342,0.00102214,2577.7,2577.5,0.08944418]
[1646961695542,1.05243035,2577.7,2577.5,0.00378944]
[1646961696348,1.05243035,2577.7,2576.6,0.09053272]
[1646961696748,1.05243035,2577.7,2577.5,0.00382572]
[1646961697447,0.00102214,2577.7,2577.5,0.00382572]
[1646961697648,0.00102214,2577.7,2576.9,0.08145958]
[1646961697848,0.00102214,2577.7,2577.5,0.00382572]
[1646961698495,0.00102214,2577.7,2577.6,0.0008]
[1646961698691,1.07260918,2577.7,2577.6,0.0008]
[1646961699490,1.07260918,2577.7,2576.7,0.06861615]
[1646961699989,1.07260918,2577.7,2576.9,1.06272084]
[1646961700187,0.00102214,2577.7,2577.0,0.08466096]
[1646961700790,0.11476568,2578.0,2577.0,0.08466096]
[1646961700993,0.11476568,2578.0,2577.0,0.54666096]
[1646961701198,0.11476568,2578.0,2577.1,0.06926905]
[1646961701393,0.11476568,2578.0,2577.2,0.462]
[1646961701593,0.11476568,2578.0,2577.3,0.462]
[1646961701794,0.11476568,2578.0,2577.4,0.0753242]
[1646961702640,0.11476568,2578.0,2577.4,0.07649777]
[1646961703142,1.08509568,2578.0,2577.4,0.07649777]
[1646961703340,0.11476568,2578.0,2577.4,0.07649777]
[1646961703543,0.11476568,2578.0,2577.1,0.07031689]
[1646961703750,0.11476568,2578.0,2577.4,0.00390319]
[1646961703751,0.16241674,2578.0,2577.4,0.00390319]
[1646961704544,1.94091,2577.9,2577.4,0.00390319]
[1646961704743,1.94091,2577.9,2576.9,0.9221635]
[1646961704943,1.94091,2577.9,2577.0,0.08640578]
[1646961705144,0.16241674,2578.0,2577.4,0.00390319]
[1646961705343,0.11476568,2578.0,2577.4,0.00390319]
[1646961705988,1.08508568,2578.0,2577.0,0.08640578]
[1646961706192,1.08508568,2578.0,2577.4,0.00390319]
[1646961707193,1.08508568,2578.0,2577.2,0.0825393]
[1646961707393,1.08508568,2578.0,2577.4,0.00390319]
[1646961708395,1.08508568,2578.0,2577.4,0.08468791]
[1646961708596,1.08508568,2578.0,2577.4,0.0885911]
[1646961708597,0.11476568,2578.0,2577.4,0.0885911]
[1646961708797,0.11476568,2578.0,2577.4,1.30970319]
[1646961708999,0.11476568,2578.0,2577.5,0.07385645]
[1646961709196,0.11476568,2578.0,2577.5,0.462]
[1646961709496,0.11476568,2578.0,2577.6,0.08058014]
[1646961710543,0.11476568,2578.0,2577.4,0.00390319]
[1646961710742,0.11476568,2578.0,2577.4,0.07823149]
[1646961711146,0.11476568,2578.0,2577.4,0.00346408]
[1646961712046,0.97043,2577.6,2577.2,0.37976409]
[1646961712244,0.97043,2577.6,2577.4,0.00346408]
[1646961712743,2.05559568,2578.0,2577.4,0.00346408]
[1646961713143,2.05559568,2578.0,2577.2,0.37976409]
[1646961713343,2.05559568,2578.0,2577.2,0.07976409]
[1646961713588,2.05559568,2578.0,2577.4,0.00346408]
[1646961714089,0.97037,2577.8,2577.4,0.00346408]
[1646961714490,2.05559568,2578.0,2577.2,0.07976409]
[1646961714692,2.05559568,2578.0,2577.5,1.94015]
[1646961714693,0.11476568,2578.0,2577.5,1.94015]
[1646961714888,0.11476568,2578.0,2577.6,0.462]
[1646961715087,0.11476568,2578.0,2577.7,0.07449888]
[1646961715288,0.11476568,2578.0,2577.8,0.462]
[1646961715492,0.11476568,2578.0,2577.9,0.54636228]
[1646961715890,0.11476568,2578.0,2577.9,0.762]
[1646961716393,0.00439363,2578.8,2578.0,3.6]
[1646961716594,0.00439363,2578.8,2578.6,0.96979]
[1646961716796,0.00439363,2578.8,2578.6,2.19599]
[1646961717240,0.00439363,2578.8,2578.7,0.462]
[1646961719442,0.00439363,2578.8,2578.7,2.43835533]
[1646961719740,0.00439363,2578.8,2578.7,1.462]
[1646961720142,0.00439363,2578.8,2578.7,0.462]
[1646961720340,0.00439363,2578.8,2578.6,0.96979]
[1646961720741,0.00549941,2578.8,2578.6,0.96979]
[1646961721190,0.00272689,2578.9,2578.6,0.96979]
[1646961721599,0.98549581,2579.3,2578.7,0.96971]
[1646961721790,4.48167964,2579.6,2578.7,0.96971]
[1646961721995,4.48167964,2579.6,2578.7,1.93924]